bitfinex/quotes_BTCUSD_20251104
["timestamp","ask_amount","ask_price","bid_price","bid_amount"]
[1762283927279,3.76601107,101450.0,101440.0,0.007]
[1762283927485,3.78625725,101450.0,101440.0,0.007]
[1762283927688,0.34,101440.0,101420.0,0.15782034]
[1762283927907,0.34,101440.0,101420.0,0.15852034]
[1762283927908,0.75937107,101430.0,101420.0,0.15852034]
[1762283928121,1.11961725,101430.0,101420.0,0.02082]
[1762283928300,1.11961725,101430.0,101420.0,0.04081998]
[1762283928512,1.11961725,101430.0,101420.0,0.02082]
[1762283928716,1.21419331,101430.0,101420.0,0.02082]
[1762283928917,1.21419331,101430.0,101420.0,0.02282]
[1762283929129,1.11961725,101430.0,101420.0,0.04281998]
[1762283929370,1.11961725,101430.0,101420.0,0.04081998]
[1762283929568,1.11961725,101430.0,101420.0,0.07080998]
[1762283929866,1.11961725,101430.0,101420.0,0.11230998]
[1762283930196,1.11961725,101430.0,101420.0,0.09231]
[1762283930409,1.11961725,101430.0,101420.0,0.11230998]
[1762283930892,1.21419331,101430.0,101420.0,0.11230998]
[1762283931488,1.11961725,101430.0,101420.0,0.09231]
[1762283931716,1.11961725,101430.0,101420.0,0.11230998]
[1762283931935,0.02024618,101430.0,101420.0,0.11230998]
[1762283932145,1.11961725,101440.0,101420.0,0.30950866]
[1762283932360,1.11961725,101440.0,101430.0,0.04798998]
[1762283932361,1.21419331,101440.0,101430.0,0.04798998]
[1762283932564,1.21419331,101440.0,101420.0,0.08431998]
[1762283932887,0.75937107,101430.0,101420.0,0.08431998]
[1762283933163,1.09937107,101430.0,101420.0,0.08431998]
[1762283933391,1.09937107,101430.0,101420.0,0.11230998]
[1762283933810,1.00087516,101440.0,101420.0,0.11230998]
[1762283933964,0.75937107,101430.0,101420.0,0.11030998]
[1762283934413,1.09937107,101430.0,101420.0,0.11030998]
[1762283934760,1.09937107,101430.0,101420.0,0.11230998]
[1762283935165,1.09937107,101430.0,101420.0,0.11030998]
[1762283935615,1.09937107,101430.0,101420.0,0.11430998]
[1762283937058,1.09937107,101430.0,101420.0,0.07280998]
[1762283937261,1.09937107,101430.0,101420.0,0.02482]
[1762283937262,1.11915753,101430.0,101420.0,0.02482]
[1762283937480,1.11915753,101430.0,101420.0,0.0047]
[1762283937701,4.14690753,101430.0,101420.0,0.0047]
[1762283937914,4.38104785,101430.0,101420.0,0.0047]
[1762283938122,4.47562391,101430.0,101420.0,0.0047]
[1762283938335,4.27844359,101430.0,101420.0,0.0047]
[1762283938751,4.27844359,101430.0,101420.0,0.0007]
[1762283939171,4.14690753,101430.0,101420.0,0.0027]
[1762283939381,3.35978646,101430.0,101420.0,0.0027]
[1762283939590,1.11915753,101430.0,101420.0,0.09218998]
[1762283939799,0.34,101430.0,101420.0,0.09218998]
[1762283940006,0.75962107,101440.0,101430.0,0.01999998]
[1762283940232,0.77940913,101440.0,101430.0,0.08948998]
[1762283940453,4.20051124,101440.0,101420.0,0.06419998]
[1762283940670,4.32430139,101430.0,101420.0,0.0027]
[1762283940883,4.38104945,101430.0,101420.0,0.09690034]
[1762283941096,5.19042052,101430.0,101420.0,0.09690034]
[1762283941276,4.48654941,101430.0,101420.0,0.09690034]
[1762283941956,4.14690913,101430.0,101420.0,0.0027]
[1762283942403,0.01978806,101430.0,101420.0,0.07219]
[1762283942614,0.01978806,101430.0,101420.0,0.09018998]
[1762283942826,0.34025,101440.0,101430.0,0.01999998]
[1762283943051,0.02002703,101440.0,101430.0,0.08948998]
[1762283943267,0.36002703,101440.0,101430.0,0.08948998]
[1762283943476,0.02002703,101440.0,101430.0,0.08948998]
[1762283943689,0.86247791,101440.0,101430.0,0.01999998]
[1762283943908,0.34,101430.0,101420.0,0.0007]
[1762283944116,1.1191481,101430.0,101420.0,0.02069998]
[1762283944394,0.34,101430.0,101420.0,0.28738974]
[1762283944609,0.34,101430.0,101420.0,0.09018998]
[1762283944818,4.15308681,101430.0,101420.0,0.04868998]
[1762283945024,4.15308782,101430.0,101420.0,0.04868998]
[1762283945230,0.35969175,101430.0,101420.0,0.09218998]
[1762283945443,0.34,101430.0,101420.0,0.09218998]
[1762283945667,0.35970013,101430.0,101420.0,0.09018998]
[1762283945887,0.35970013,101430.0,101420.0,0.28738974]
[1762283946099,0.35970001,101430.0,101420.0,0.09018998]
[1762283946314,1.09937107,101430.0,101420.0,0.09018998]
[1762283946523,1.09937107,101430.0,101420.0,0.07019]
[1762283946524,1.11907916,101430.0,101420.0,0.07019]
[1762283946737,1.11907916,101430.0,101420.0,0.09018998]
[1762283946954,4.11907916,101430.0,101420.0,0.0057]
[1762283947163,4.38096948,101430.0,101420.0,0.0057]
[1762283947373,4.47554554,101430.0,101420.0,0.0057]
[1762283947793,4.27836522,101430.0,101420.0,0.0007]
[1762283948006,4.47554554,101430.0,101420.0,0.0047]
[1762283948227,3.45428415,101430.0,101420.0,0.0047]
[1762283948431,1.11907916,101430.0,101420.0,0.02869]
[1762283948641,1.11907916,101430.0,101420.0,0.09218998]
[1762283948847,0.37815683,101430.0,101420.0,0.09218998]
[1762283949278,0.37815683,101430.0,101420.0,0.09265995]
[1762283949523,0.37815683,101430.0,101420.0,0.09218998]
[1762283949956,1.23210396,101430.0,101420.0,0.09218998]
[1762283950188,4.23210396,101430.0,101420.0,0.0027]
[1762283950395,3.47273289,101430.0,101420.0,0.0027]
[1762283950602,4.23210396,101430.0,101420.0,0.02269998]
[1762283951300,3.47273289,101430.0,101420.0,0.02269998]
[1762283951506,4.23210396,101430.0,101420.0,0.02269998]
[1762283952595,3.47273289,101430.0,101420.0,0.02269998]
[1762283952810,1.1375279,101430.0,101420.0,0.08694998]
[1762283953025,1.1375279,101430.0,101420.0,0.02269998]
[1762283953251,1.33470822,101430.0,101420.0,0.02269998]
[1762283953484,4.38947822,101430.0,101420.0,0.0027]
[1762283953703,5.28814535,101430.0,101420.0,0.0027]
[1762283953924,5.28814535,101430.0,101390.0,0.0014149]
[1762283953925,0.53723865,101400.0,101390.0,0.0014149]
[1762283954142,0.53723865,101400.0,101390.0,0.00155942]
[1762283954143,4.38953655,101400.0,101390.0,0.00155942]
[1762283954831,4.43321147,101400.0,101390.0,0.00155942]
[1762283955052,4.61396981,101400.0,101390.0,0.00155942]
[1762283955509,4.6239698,101400.0,101390.0,0.00155942]
[1762283955739,0.19729703,101370.0,101360.0,0.0004]
[1762283955961,4.44727847,101370.0,101360.0,0.0008822]
[1762283956190,4.18921916,101370.0,101360.0,0.0008822]
[1762283956398,4.16379916,101370.0,101360.0,0.0008822]
[1762283956610,4.1653426,101370.0,101360.0,0.0008822]
[1762283956824,4.1653426,101370.0,101360.0,0.02088218]
[1762283956825,1.14409107,101370.0,101360.0,0.02088218]
[1762283957048,4.14409107,101370.0,101360.0,0.02088218]
[1762283957263,4.3961581,101370.0,101360.0,0.0008822]
[1762283957494,4.24986107,101370.0,101360.0,0.0008822]
[1762283957709,4.14509107,101370.0,101360.0,0.0008822]
[1762283957920,1.09937107,101370.0,101360.0,0.08513218]
[1762283958120,1.14826801,101370.0,101360.0,0.0955214]
[1762283958326,0.80826801,101370.0,101360.0,0.0955214]
[1762283958558,0.809073,101370.0,101360.0,0.08513218]
[1762283958789,0.04889694,101370.0,101360.0,0.08513218]
[1762283959001,0.04889694,101370.0,101360.0,0.28244867]
[1762283959211,0.04889694,101370.0,101360.0,0.28344867]
[1762283959414,0.04889694,101370.0,101360.0,0.33340298]
[1762283959662,0.38889694,101370.0,101360.0,0.33340298]
[1762283959870,0.38889694,101370.0,101360.0,0.13608649]
[1762283960717,0.36124224,101370.0,101360.0,0.13608649]
[1762283960940,0.36124224,101370.0,101360.0,0.08613218]
[1762283961157,0.95025606,101370.0,101360.0,0.08613218]
[1762283961564,0.95025606,101370.0,101360.0,0.08688299]
[1762283961565,0.92266269,101370.0,101360.0,0.08688299]
[1762283962606,0.36124224,101370.0,101360.0,0.08688299]
[1762283963032,0.34,101370.0,101360.0,0.08688299]
[1762283963234,0.92259601,101370.0,101360.0,0.08688299]
[1762283963464,0.99219343,101370.0,101360.0,0.04713299]
[1762283963676,1.14746445,101370.0,101360.0,0.00263301]
[1762283963879,1.14746445,101370.0,101360.0,0.00163301]
[1762283964129,4.17288445,101370.0,101360.0,0.00163301]
[1762283964334,4.20223445,101370.0,101360.0,0.00463301]
[1762283964553,4.29681051,101370.0,101360.0,0.00463301]
[1762283964800,4.09951348,101370.0,101360.0,0.00463301]
[1762283965016,4.14746445,101370.0,101360.0,0.00463301]
[1762283965248,3.95016742,101370.0,101360.0,0.00463301]
[1762283965461,3.95016742,101370.0,101360.0,0.011633]
[1762283965683,3.95016742,101370.0,101360.0,0.02263299]
[1762283965897,4.14746445,101370.0,101360.0,0.02263299]
[1762283966107,4.04474348,101370.0,101360.0,0.00263301]
[1762283966334,3.95016742,101370.0,101360.0,0.00263301]
[1762283966548,3.95016742,101370.0,101360.0,0.08688299]
[1762283966765,0.04874697,101370.0,101360.0,0.08688299]
[1762283967178,0.0395565,101370.0,101360.0,0.08688299]
[1762283967359,0.0395565,101370.0,101360.0,0.09561129]
[1762283967817,0.90142045,101380.0,101370.0,0.01999998]
[1762283968030,0.90142045,101380.0,101370.0,0.08424998]
[1762283968031,0.04868326,101380.0,101370.0,0.08424998]
[1762283968250,0.04868326,101380.0,101370.0,0.08475047]
[1762283968684,0.03950431,101380.0,101370.0,0.08475047]
[1762283968897,0.03950431,101380.0,101370.0,0.3112152]
[1762283969122,0.34,101390.0,101370.0,0.11391817]
[1762283969354,0.38867765,101390.0,101380.0,0.10260998]
[1762283969562,0.04867765,101390.0,101380.0,0.1028602]
[1762283969837,0.38867765,101390.0,101380.0,0.1028602]
[1762283970054,0.56142045,101420.0,101380.0,0.36925241]
[1762283970266,3.00141462,101430.0,101420.0,0.03835998]
[1762283970476,3.0,101420.0,101410.0,0.0245]
[1762283970691,0.00141462,101430.0,101420.0,0.06425]
[1762283971113,0.02894779,101430.0,101410.0,0.01836]
[1762283971328,0.08767324,101430.0,101410.0,0.0519]
[1762283971538,0.56142045,101420.0,101410.0,0.0519]
[1762283971750,0.95009689,101420.0,101410.0,0.0519]
[1762283971965,0.95009689,101420.0,101410.0,0.07367]
[1762283972828,0.95009689,101420.0,101410.0,0.07567]
[1762283973035,0.95009689,101420.0,101410.0,0.02036]
[1762283973253,1.04467295,101420.0,101410.0,0.02036]
[1762283973461,0.38867644,101420.0,101410.0,0.07567]
[1762283973676,0.95009689,101420.0,101410.0,0.07567]
[1762283974519,0.95009689,101420.0,101410.0,0.04213]
[1762283974729,4.17101665,101420.0,101410.0,0.002]
[1762283974974,4.06839295,101420.0,101410.0,0.002]
[1762283975180,4.24187271,101420.0,101410.0,0.002]
[1762283975399,4.26559271,101420.0,101410.0,0.002]
[1762283975605,0.34,101400.0,101390.0,0.03354]
[1762283975818,0.38867644,101400.0,101390.0,0.03354]
[1762283976023,0.95009689,101400.0,101390.0,0.05531]
[1762283977267,0.04867644,101400.0,101390.0,0.05531]
[1762283977484,0.95009689,101400.0,101390.0,0.05531]
[1762283977906,0.95009689,101400.0,101390.0,0.05731]
[1762283979056,1.04467295,101400.0,101390.0,0.002]
[1762283979259,0.95009689,101400.0,101390.0,0.002]
[1762283979478,4.20560554,101400.0,101390.0,0.002]
[1762283980133,3.95009689,101400.0,101390.0,0.002]
[1762283980361,0.34,101390.0,101380.0,0.00025022]
[1762283980566,3.95009689,101390.0,101380.0,0.00025022]
[1762283980779,4.156265,101390.0,101380.0,0.00025022]
[1762283981002,3.95900689,101390.0,101380.0,0.00025022]
[1762283981415,0.04867644,101390.0,101380.0,0.05447022]
[1762283981643,0.95009689,101390.0,101380.0,0.05447022]
[1762283982276,0.38867644,101390.0,101380.0,0.05447022]
[1762283983140,0.04867644,101390.0,101380.0,0.25174778]
[1762283983343,0.04867644,101390.0,101380.0,0.10102567]
[1762283983556,0.04867644,101390.0,101380.0,0.05447022]
[1762283984229,0.04867644,101390.0,101380.0,0.05547022]
[1762283984449,0.04867644,101390.0,101380.0,0.25274778]
[1762283985363,0.04878725,101390.0,101380.0,0.25274778]
[1762283985595,0.04878725,101390.0,101380.0,0.28893006]
[1762283986012,0.04878725,101390.0,101380.0,0.0916525]
[1762283986226,0.6102077,101390.0,101380.0,0.05547022]
[1762283987947,0.9502077,101390.0,101380.0,0.05547022]
[1762283988152,0.9502077,101390.0,101380.0,0.02310022]
[1762283988367,3.9502077,101390.0,101380.0,0.00125022]
[1762283989187,3.9502077,101390.0,101380.0,0.05547022]
[1762283989188,0.9502077,101390.0,101380.0,0.05547022]
[1762283989650,0.9502077,101390.0,101380.0,0.05447022]
[1762283990990,0.9512077,101390.0,101380.0,0.05447022]
[1762283991199,0.38978725,101390.0,101380.0,0.05447022]
[1762283991400,0.9512077,101390.0,101380.0,0.05447022]
[1762283991712,0.38978725,101390.0,101380.0,0.05447022]
[1762283991903,0.9512077,101390.0,101380.0,0.05447022]
[1762283992101,0.98918643,101390.0,101380.0,0.00025022]
[1762283992303,4.16903581,101390.0,101380.0,0.00025022]
[1762283992563,4.16903581,101390.0,101380.0,0.00125022]
[1762283992774,4.0033677,101390.0,101380.0,0.00125022]
[1762283993025,3.9717777,101390.0,101380.0,0.00125022]
[1762283993215,3.38878725,101390.0,101380.0,0.02310022]
[1762283993342,3.9502077,101390.0,101380.0,0.02310022]
[1762283993544,3.9502077,101390.0,101380.0,0.05547022]
[1762283993747,0.38878725,101390.0,101380.0,0.05547022]
[1762283993949,3.9717777,101390.0,101380.0,0.00025022]
[1762283994156,4.17003581,101390.0,101380.0,0.00025022]
[1762283994595,4.20162581,101390.0,101380.0,0.00025022]
[1762283994803,4.0043677,101390.0,101380.0,0.00025022]
[1762283995214,3.9512077,101390.0,101380.0,0.00025022]
[1762283995419,4.17003581,101390.0,101380.0,0.00025022]
[1762283995632,3.9727777,101390.0,101380.0,0.00025022]
[1762283996143,3.9512077,101390.0,101380.0,0.00025022]
[1762283996378,3.9619177,101390.0,101380.0,0.00025022]
[1762283996552,3.9834877,101390.0,101380.0,0.00025022]
[1762283997863,4.24481668,101390.0,101380.0,0.00025022]
[1762283998065,4.28957668,101390.0,101380.0,0.00025022]
[1762283998268,4.33957668,101390.0,101380.0,0.00025022]
[1762283998444,4.28957668,101390.0,101380.0,0.00025022]
[1762283998653,4.0066777,101390.0,101380.0,0.00025022]
[1762283999574,1.0066777,101390.0,101380.0,0.00025022]
[1762284000219,0.43454725,101390.0,101380.0,0.05447022]
[1762284000437,0.43454725,101390.0,101380.0,0.00025022]
[1762284000438,0.6219177,101390.0,101380.0,0.00025022]
[1762284000651,3.9834877,101390.0,101380.0,0.00025022]
[1762284000862,3.9619177,101390.0,101380.0,0.00025022]
[1762284001092,3.9619177,101390.0,101380.0,0.02210022]
[1762284001306,0.38978725,101390.0,101380.0,0.05447022]
[1762284001542,0.99125742,101390.0,101380.0,0.05447022]
[1762284001773,3.95127126,101390.0,101380.0,0.02210022]
[1762284002190,3.95127126,101390.0,101380.0,0.00025022]
[1762284002648,4.20068937,101390.0,101380.0,0.00025022]
[1762284002872,4.00343126,101390.0,101380.0,0.00025022]
[1762284003098,1.04484732,101390.0,101380.0,0.05447022]
[1762284003310,0.95027126,101390.0,101380.0,0.05447022]
[1762284003520,4.00343126,101390.0,101380.0,0.00025022]
[1762284003737,4.20068937,101390.0,101380.0,0.00025022]
[1762284003950,4.20068937,101390.0,101380.0,0.00125022]
[1762284004213,4.00343126,101390.0,101380.0,0.00125022]
[1762284004435,4.00343126,101390.0,101360.0,0.0004]
[1762284004436,3.56142045,101370.0,101360.0,0.0004]
[1762284004643,0.61040847,101370.0,101360.0,0.03277]
[1762284004846,0.61040847,101370.0,101360.0,0.05462]
[1762284005069,0.04898802,101370.0,101360.0,0.05462]
[1762284005744,0.38898802,101370.0,101360.0,0.05462]
[1762284006388,0.95040847,101370.0,101360.0,0.05462]
[1762284006830,0.98065847,101370.0,101360.0,0.0004]
[1762284007097,4.2095455,101370.0,101360.0,0.0014]
[1762284007742,4.83114823,101370.0,101360.0,0.0004]
[1762284008198,4.27172778,101370.0,101360.0,0.0004]
[1762284008436,4.36430384,101370.0,101360.0,0.0004]
[1762284008655,4.92572429,101370.0,101360.0,0.0004]
[1762284008870,4.92572429,101370.0,101360.0,0.0014]
[1762284008871,5.03542429,101370.0,101360.0,0.0014]
[1762284009516,5.05542427,101370.0,101360.0,0.00041]
[1762284009720,3.57349877,101360.0,101350.0,0.0004]
[1762284009930,4.87451369,101360.0,101350.0,0.0008822]
[1762284010265,4.8645137,101360.0,101350.0,0.0008822]
[1762284010684,4.02756847,101360.0,101350.0,0.0008822]
[1762284010883,4.76230541,101360.0,101350.0,0.0008822]
[1762284011062,4.84848769,101360.0,101350.0,0.0008822]
[1762284011303,4.85448769,101360.0,101350.0,0.0018822]
[1762284012172,4.20688496,101360.0,101350.0,0.0018822]
[1762284012350,4.29760102,101360.0,101350.0,0.0018822]
[1762284013206,4.94520375,101360.0,101350.0,0.0018822]
[1762284013416,4.89520375,101360.0,101350.0,0.0018822]
[1762284013631,4.94520375,101360.0,101350.0,0.0018822]
[1762284013841,4.20302496,101360.0,101350.0,0.0018822]
[1762284014271,3.61640847,101360.0,101350.0,0.0164922]
[1762284014513,0.02725408,101360.0,101350.0,0.0641622]
[1762284014942,0.60786453,101360.0,101350.0,0.0018822]
[1762284015151,3.64482091,101360.0,101350.0,0.0018822]
[1762284015362,3.6355445,101360.0,101350.0,0.0018822]
[1762284015575,0.03648046,101360.0,101350.0,0.06491312]
[1762284015801,0.92867453,101360.0,101350.0,0.06491312]
[1762284016024,0.36725408,101360.0,101350.0,0.06491312]
[1762284016230,0.92867453,101360.0,101350.0,0.06491312]
[1762284016433,0.92867453,101360.0,101350.0,0.06391312]
[1762284016434,0.58267453,101360.0,101350.0,0.06391312]
[1762284016656,0.02125408,101360.0,101350.0,0.07030443]
[1762284016894,0.56142045,101380.0,101360.0,0.19730824]
[1762284017097,0.04893505,101380.0,101360.0,0.23519406]
[1762284017360,0.04893505,101380.0,101370.0,0.04767]
[1762284017589,3.0,101370.0,101350.0,0.0154922]
[1762284017807,0.56142045,101360.0,101350.0,0.0445122]
[1762284018009,0.92267572,101360.0,101350.0,0.0445122]
[1762284018217,0.92267572,101360.0,101350.0,0.0435122]
[1762284018470,0.92267572,101360.0,101350.0,0.0631622]
[1762284019753,0.92267572,101360.0,101350.0,0.0351422]
[1762284019965,0.92267572,101360.0,101350.0,0.0631622]
[1762284020193,0.95036143,101360.0,101350.0,0.0631622]
[1762284020403,0.38994098,101360.0,101350.0,0.06947842]
[1762284020606,0.38994098,101360.0,101350.0,0.26681438]
[1762284020816,0.04994098,101360.0,101350.0,0.26681438]
[1762284021060,0.37407798,101370.0,101360.0,0.01965]
[1762284021265,0.34,101370.0,101360.0,0.04767]
[1762284021482,0.34,101370.0,101360.0,0.07435134]
[1762284021690,0.34,101370.0,101360.0,0.01965]
[1762284021691,3.0,101370.0,101360.0,0.01965]
[1762284021899,4.10011569,101370.0,101350.0,0.0435122]
[1762284022110,3.76822569,101360.0,101350.0,0.0154922]
[1762284022332,0.76822569,101360.0,101350.0,0.0008822]
[1762284022551,0.78741569,101360.0,101350.0,0.0008822]
[1762284022763,0.76822569,101360.0,101350.0,0.0008822]
[1762284023180,1.10822569,101360.0,101350.0,0.0008822]
[1762284023315,4.10822569,101360.0,101350.0,0.0008822]
[1762284023954,4.32473218,101360.0,101350.0,0.0008822]
[1762284024107,4.35646218,101360.0,101350.0,0.0008822]
[1762284024524,4.15914569,101360.0,101350.0,0.0008822]
[1762284024941,3.35211,101360.0,101350.0,0.0008822]
[1762284025144,4.13141569,101360.0,101350.0,0.0008822]
[1762284025565,4.35646218,101360.0,101350.0,0.0008822]
[1762284025778,4.11222569,101360.0,101350.0,0.0154922]
[1762284025979,4.11222569,101360.0,101350.0,0.0631622]
[1762284025980,0.344,101360.0,101350.0,0.0631622]
[1762284026200,0.344,101360.0,101350.0,0.06947842]
[1762284026937,3.0,101370.0,101350.0,0.06947842]
[1762284027157,0.76011569,101370.0,101350.0,0.06947842]
[1762284027402,0.34,101360.0,101350.0,0.0631622]
[1762284027617,0.76011569,101370.0,101350.0,0.0631622]
[1762284027830,0.34,101360.0,101350.0,0.06491312]
[1762284028266,0.34,101360.0,101350.0,0.06391312]
[1762284029330,0.90512081,101370.0,101350.0,0.03589312]
[1762284029538,3.00811,101360.0,101350.0,0.0351422]
[1762284029758,1.10822569,101360.0,101350.0,0.0351422]
[1762284029993,1.10822569,101360.0,101350.0,0.02180842]
[1762284030217,1.10822569,101360.0,101350.0,0.00163312]
[1762284030218,4.35246218,101360.0,101350.0,0.00163312]
[1762284030435,4.10822569,101360.0,101350.0,0.01624312]
[1762284030642,4.10822569,101360.0,101350.0,0.00163312]
[1762284030867,4.32473218,101360.0,101350.0,0.00163312]
[1762284031082,4.35246218,101360.0,101350.0,0.00163312]
[1762284031328,4.13141569,101360.0,101350.0,0.00163312]
[1762284031534,4.11222569,101360.0,101350.0,0.00163312]
[1762284031742,4.35870218,101360.0,101350.0,0.00163312]
[1762284032149,4.16138569,101360.0,101350.0,0.00163312]
[1762284032355,4.13206569,101360.0,101350.0,0.00163312]
[1762284032562,4.35470218,101360.0,101350.0,0.00163312]
[1762284032760,4.35870218,101360.0,101350.0,0.00163312]
[1762284032992,4.16120762,101360.0,101350.0,0.00163312]
[1762284033126,4.15720762,101360.0,101350.0,0.01757312]
[1762284033329,4.17173721,101360.0,101350.0,0.01757312]
[1762284033654,0.40151152,101360.0,101350.0,0.06665312]
[1762284033949,4.3787837,101360.0,101350.0,0.00163312]
[1762284034095,4.18146721,101360.0,101350.0,0.00163312]
[1762284034500,4.4121037,101360.0,101350.0,0.00163312]
[1762284034917,4.18546721,101360.0,101350.0,0.00163312]
[1762284035288,4.4121037,101360.0,101350.0,0.00163312]
[1762284035460,4.18546721,101360.0,101350.0,0.00163312]
[1762284035677,4.21478721,101360.0,101350.0,0.00163312]
[1762284036215,4.18546721,101360.0,101350.0,0.00163312]
[1762284036633,4.16562721,101360.0,101350.0,0.01757312]
[1762284036835,4.16562721,101360.0,101350.0,0.06665312]
[1762284037247,4.16562721,101360.0,101350.0,0.03709312]
[1762284037738,0.40551152,101360.0,101350.0,0.07491243]
[1762284037882,0.40151152,101360.0,101350.0,0.07491243]
[1762284038087,0.40151152,101360.0,101350.0,0.27224839]
[1762284038302,0.04898193,101360.0,101350.0,0.42174839]
[1762284038470,0.04898193,101360.0,101350.0,0.22441243]
[1762284038705,0.04898193,101360.0,101350.0,0.18659312]
[1762284038706,0.04898979,101360.0,101350.0,0.18659312]
[1762284038932,1.14910548,101360.0,101350.0,0.18659312]
[1762284039115,1.15110548,101360.0,101350.0,0.18659312]
[1762284039459,0.38898979,101360.0,101350.0,0.21615312]
[1762284039614,0.38898979,101360.0,101350.0,0.18659312]
[1762284040464,0.38898979,101360.0,101350.0,0.24049243]
[1762284040669,0.04898979,101360.0,101350.0,0.24049243]
[1762284040874,0.04898979,101360.0,101350.0,0.21728312]
[1762284041076,0.80910548,101360.0,101350.0,0.18659312]
[1762284041282,0.04898979,101360.0,101350.0,0.21728312]
[1762284041530,0.38898979,101360.0,101350.0,0.21728312]
[1762284041731,0.38898979,101360.0,101350.0,0.26034094]
[1762284042296,0.38898979,101360.0,101350.0,0.4576769]
[1762284042494,1.14910548,101360.0,101350.0,0.18659312]
[1762284043120,0.38898979,101360.0,101350.0,0.41461908]
[1762284043325,0.18944574,101400.0,101360.0,0.20731473]
[1762284043326,0.76011569,101380.0,101360.0,0.20731473]
[1762284043569,3.0,101390.0,101380.0,0.00999999]
[1762284043779,3.0,101400.0,101390.0,0.01539]
[1762284043968,3.0,101400.0,101390.0,0.20663558]
[1762284044287,3.0,101410.0,101400.0,0.00999999]
[1762284044484,3.0,101400.0,101370.0,0.16785642]
[1762284044601,3.76011569,101400.0,101390.0,0.00999999]
[1762284045029,3.76011569,101400.0,101370.0,0.14716641]
[1762284045030,3.96721627,101400.0,101370.0,0.14716641]
[1762284045270,4.10011569,101390.0,101380.0,0.00999999]
[1762284045463,3.34014423,101390.0,101380.0,0.00999999]
[1762284045765,3.34014423,101390.0,101380.0,0.01996]
[1762284045968,3.34014423,101390.0,101380.0,0.00999999]
[1762284046169,3.34014423,101390.0,101380.0,0.02995999]
[1762284046627,3.53740234,101390.0,101370.0,0.02538999]
[1762284046821,0.34,101380.0,101370.0,0.01539]
[1762284047045,0.34,101380.0,101370.0,0.02538999]
[1762284047477,0.34,101380.0,101370.0,0.07603999]
[1762284047693,3.0,101380.0,101370.0,0.08164799]
[1762284048370,0.34,101380.0,101370.0,0.07603999]
[1762284048584,0.34,101380.0,101370.0,0.27333702]
[1762284049026,0.00014423,101390.0,101380.0,0.24345983]
[1762284049272,0.00091472,101400.0,101390.0,0.19725811]
[1762284049472,0.703121,101440.0,101410.0,0.00999999]
[1762284049691,3.0,101430.0,101410.0,0.02995999]
[1762284049893,0.34,101420.0,101410.0,0.04534999]
[1762284050108,0.2094226,101430.0,101410.0,0.04534999]
[1762284050304,3.0,101420.0,101410.0,0.02538999]
[1762284050514,1.08195735,101440.0,101410.0,0.05607999]
[1762284050710,3.0,101430.0,101410.0,0.07603999]
[1762284050868,0.34,101420.0,101410.0,0.07603999]
[1762284051283,3.0,101410.0,101400.0,0.02538999]
[1762284051489,3.0,101410.0,101400.0,0.01539]
[1762284051833,3.0,101410.0,101380.0,0.03069]
[1762284051834,3.0,101400.0,101380.0,0.03069]
[1762284051986,3.0,101390.0,101370.0,0.01539]
[1762284052171,3.0,101390.0,101380.0,0.00999999]
[1762284052373,0.19723889,101400.0,101380.0,0.03559302]
[1762284052374,3.0,101400.0,101380.0,0.03559302]
[1762284052578,3.0,101400.0,101390.0,0.02995999]
[1762284052774,3.0,101420.0,101390.0,0.02995999]
[1762284052975,3.0,101420.0,101410.0,0.01539]
[1762284053607,0.34050018,101420.0,101410.0,0.06604]
[1762284053849,0.34050018,101420.0,101410.0,0.07603999]
[1762284054033,0.00050018,101420.0,101410.0,0.07603999]
[1762284054236,0.00050018,101420.0,101410.0,0.04534999]
[1762284054447,0.00050018,101420.0,101410.0,1.03337488]
[1762284054618,0.01249671,101440.0,101430.0,0.00999999]
[1762284054830,0.34014458,101440.0,101430.0,0.05131188]
[1762284055030,0.00014458,101440.0,101430.0,0.05131188]
[1762284055712,0.00935944,101440.0,101430.0,0.2484922]
[1762284055934,0.00935944,101440.0,101430.0,0.1152011]
[1762284056136,0.34935944,101440.0,101430.0,0.1152011]
[1762284056338,0.00935944,101440.0,101430.0,0.31238142]
[1762284056711,0.01235944,101440.0,101430.0,0.31238142]
[1762284057757,0.01235944,101440.0,101430.0,0.05131188]
[1762284058382,0.00935944,101440.0,101430.0,0.05131188]
[1762284058789,0.01035944,101440.0,101430.0,0.05131188]
[1762284058984,0.35035944,101440.0,101430.0,0.05131188]
[1762284060459,3.0,101430.0,101410.0,0.28934231]
[1762284060670,0.00921486,101430.0,101420.0,0.00066188]
[1762284060851,0.34921486,101430.0,101420.0,0.02062188]
[1762284061050,0.34921486,101430.0,101420.0,0.05065]
[1762284061435,0.34919783,101430.0,101420.0,0.05131188]
[1762284061875,0.00919783,101430.0,101420.0,0.24851164]
[1762284062039,0.34014458,101440.0,101430.0,0.1978422]
[1762284062244,0.34014458,101440.0,101430.0,1.04479017]
[1762284062447,0.01220652,101450.0,101440.0,0.19782276]
[1762284062672,0.08855935,101470.0,101450.0,0.00066188]
[1762284062873,0.08855935,101470.0,101450.0,0.03135188]
[1762284063128,0.08855935,101470.0,101450.0,0.00066188]
[1762284063129,3.0,101460.0,101450.0,0.00066188]
[1762284063298,3.0,101460.0,101430.0,0.01539]
[1762284063299,0.19714144,101450.0,101430.0,0.01539]
[1762284063530,3.0,101430.0,101420.0,0.00066188]
[1762284063734,3.0,101430.0,101420.0,0.00014458]
[1762284063945,3.30995638,101430.0,101420.0,0.00014458]
[1762284064150,3.0182,101430.0,101420.0,0.00080646]
[1762284064393,3.0182,101430.0,101420.0,0.00014458]
[1762284064394,4.33369601,101430.0,101420.0,0.00014458]
[1762284064610,4.38369601,101430.0,101420.0,0.00014458]
[1762284064813,4.29733489,101410.0,101400.0,0.00091458]
[1762284065021,4.36539489,101410.0,101400.0,0.00091458]
[1762284065224,4.38345489,101410.0,101400.0,0.00091458]
[1762284065428,4.33345489,101410.0,101400.0,0.00091458]
[1762284065868,3.35806,101410.0,101400.0,0.00091458]
[1762284066071,3.34,101410.0,101400.0,0.00157646]
[1762284066292,3.349,101410.0,101400.0,0.00257646]
[1762284066728,3.34,101410.0,101400.0,0.00157646]
[1762284067126,3.34,101410.0,101400.0,0.00091458]
[1762284067127,3.63179526,101410.0,101400.0,0.00091458]
[1762284067412,4.42803095,101410.0,101400.0,0.00091458]
[1762284067623,4.47803095,101410.0,101400.0,0.00091458]
[1762284068013,4.47803095,101410.0,101400.0,0.00191458]
[1762284068014,4.45903095,101410.0,101400.0,0.00191458]
[1762284068607,3.347,101410.0,101400.0,0.00091458]
[1762284068812,3.34,101410.0,101400.0,0.00157646]
[1762284069012,0.009,101410.0,101400.0,0.00257646]
[1762284069452,0.96156114,101430.0,101420.0,0.00066188]
[1762284069453,0.00025004,101430.0,101420.0,0.00066188]
[1762284069642,3.50039448,101430.0,101420.0,0.00066188]